fUST/lending_fUST_20250826
["ID","MTS","AMOUNT","RATE_DAILY","PERIOD"]
[381375953,1756165631322,-500.0,0.00031796,2]
[381375954,1756165631343,-500.0,0.00031796,2]
[381375955,1756165631365,-500.0,0.00031796,2]
[381375956,1756165631387,-500.0,0.00031796,2]
[381375957,1756165631408,-500.0,0.00031796,2]
[381375958,1756165631429,-287.22893396,0.00031796,2]
[381375959,1756165631451,-424.44128148,0.00031796,2]
[381375960,1756165631474,-328.42,0.00031796,2]
[381375961,1756165631495,-500.0,0.00031796,2]
[381375962,1756165631514,-407.22699692,0.00031796,2]
[381375963,1756165631536,-500.0,0.00031796,2]
[381375964,1756165631561,-600.0,0.00031796,2]
[381375965,1756165631583,-362.30043874,0.00031796,2]
[381375966,1756165647091,-137.69956126,0.00031796,2]
[381375967,1756165647113,-143.01844292,0.00031796,2]
[381375968,1756165651143,-356.98155708,0.00031796,2]
[381375969,1756165651164,-5.85832033,0.00031797,2]
[381375992,1756165832719,-160.0,0.00031697,2]
[381375994,1756165832729,-726.294864,0.00031697,2]
[381375996,1756165832741,-471.80884634,0.00031697,2]
[381376005,1756165832824,-2478.11682452,0.00031697,2]
[381376100,1756165838808,-918.00054316,0.00031697,2]
[381376101,1756165838819,-652.36162386,0.00031796,2]
[381376103,1756165838831,-611.40217179,0.00031796,2]
[381376105,1756165838843,-254027.57420957,0.00031797,20]
[381376110,1756165840716,-1376.24,0.00031787,10]
[381376111,1756165840726,-93680.90716575,0.00031797,20]
[381376132,1756165840936,-31.19088935,0.00031797,20]
[381376154,1756165843859,-161372.62879043,0.00031797,20]
[381376155,1756165843922,-370.91553274,0.00031797,20]
[381376164,1756165847126,-8613.07043069,0.00031797,20]
[381376171,1756166280671,10000.0,0.000281,2]
[381376172,1756166302806,236.34,0.000281,2]
[381376175,1756166832109,-400.0,0.00031791,2]
[381376176,1756166832134,-1600.0,0.00031791,3]
[381376177,1756166832154,-4857.45010645,0.00031792,2]
[381376178,1756166853113,-377.67654911,0.00031696,2]
[381376179,1756166916641,-1483.51677865,0.00030206,2]
[381376180,1756166919710,-1117.18,0.00030206,2]
[381376181,1756166921486,-982.2989772,0.00030206,2]
[381376182,1756166922856,-1000.0,0.00031299,120]
[381376183,1756166923892,-1000.0,0.00031299,120]
[381376184,1756166927053,-199.0,0.00031199,120]
[381376185,1756166927076,-801.0,0.00031299,120]
[381376186,1756166928326,-199.0,0.00031299,120]
[381376187,1756166929492,-1000.0,0.00031299,120]
[381376188,1756166930716,-199.0,0.00031199,120]
[381376190,1756167004300,-300.0,0.00031298,3]
[381376191,1756167026368,-494.3965839,0.00030206,2]
[381376192,1756167028655,-335.47,0.00030206,2]
[381376227,1756167032575,-500.9584092,0.00030206,2]
[381376228,1756167032599,-300.0,0.00031298,3]
[381376230,1756167032622,-1000.0,0.00031299,120]
[381376233,1756167032648,-1000.0,0.00031299,120]
[381376234,1756167032673,-1000.0,0.00031299,120]
[381376235,1756167032697,-1000.0,0.00031299,120]
[381376236,1756167032721,-446.74343465,0.00031299,120]
[381376272,1756167035375,-553.25656535,0.00031299,120]
[381376273,1756167035399,-1000.0,0.00031299,120]
[381376274,1756167035423,-1000.0,0.00031299,120]
[381376275,1756167035447,-471.94093133,0.00031299,120]
[381376294,1756167038020,-1099.8,0.00031696,2]
[381376302,1756167038132,-1585.33750291,0.00031696,2]
[381376304,1756167038143,-1176.22,0.00031783,10]
[381376306,1756167038153,-980.18,0.00031783,10]
[381376308,1756167038163,-39529.3332597,0.00031792,2]
[381376310,1756167038176,-174.36934754,0.00031792,2]
[381376311,1756167038186,-500.0,0.00031792,2]
[381376313,1756167038195,-500.0,0.00031792,2]
[381376315,1756167038204,-500.0,0.00031792,2]
[381376317,1756167038214,-500.0,0.00031792,2]
[381376318,1756167038224,-500.0,0.00031792,2]
[381376320,1756167038233,-500.0,0.00031792,2]
[381376322,1756167038242,-500.0,0.00031792,2]
[381376324,1756167038251,-500.0,0.00031792,2]
[381376325,1756167038261,-500.0,0.00031792,2]
[381376327,1756167038270,-402.19794032,0.00031792,2]
[381376329,1756167038280,-500.0,0.00031792,2]
[381376331,1756167038289,-166891.0162588,0.00031793,20]
[381376332,1756167038299,-5978.59844974,0.00031793,7]
[381376334,1756167038308,-49847.13800476,0.00031793,2]
[381376336,1756167038317,-1189.66571012,0.00031793,2]
[381376338,1756167038327,-576.97797581,0.00031793,5]
[381376339,1756167038337,-6131.28936142,0.00031793,30]
[381376341,1756167038346,-17822.12836044,0.00031793,2]
[381376416,1756167042797,-400.0,0.0003,120]
[381376445,1756167043185,-232.4766599,0.00031696,2]
[381376447,1756167043195,-24474.34892289,0.00031793,2]
[381376449,1756167043205,-200.0,0.00031793,10]
[381376451,1756167043215,-200.0,0.00031793,10]
[381376453,1756167043224,-200.0,0.00031793,10]
[381376455,1756167043233,-200.0,0.00031793,10]
[381376457,1756167043243,-200.0,0.00031793,10]
[381376459,1756167043253,-200.0,0.00031793,10]
[381376461,1756167043263,-200.0,0.00031793,10]
[381376463,1756167043272,-200.0,0.00031793,10]
[381376465,1756167043282,-200.0,0.00031793,10]
[381376467,1756167043291,-200.0,0.00031793,10]
[381376469,1756167043300,-200.0,0.00031793,10]
[381376471,1756167043309,-200.0,0.00031793,10]
[381376473,1756167043319,-200.0,0.00031793,10]
[381376475,1756167043328,-200.0,0.00031793,10]
[381376477,1756167043338,-215.754947,0.00031793,10]
[381376479,1756167043348,-169.79746589,0.00031797,2]
[381376481,1756167043357,-500.01132545,0.000318,5]
[381376483,1756167043367,-500.0,0.000318,5]
[381376486,1756167043376,-500.0,0.000318,5]
[381376488,1756167043386,-500.0,0.000318,5]
[381376490,1756167043395,-21509.76,0.000319,7]
[381376492,1756167043404,-283.08,0.000319,7]
[381376493,1756167043414,-2430.86,0.000319,7]
[381376495,1756167043428,-600.0,0.00031925,20]
[381376498,1756167043439,-500.0,0.00032,30]
[381376499,1756167043448,-500.0,0.00032,30]
[381376501,1756167043458,-966.41483134,0.00032348,5]
[381376504,1756167043467,-1000.0,0.00032348,5]
[381376506,1756167043476,-162.0,0.00032505,120]
[381376508,1756167043486,-417.15472785,0.00032876,120]
[381376510,1756167043496,-1447.91,0.00032876,120]
[381376512,1756167043506,-160.0,0.00032876,120]
[381376514,1756167043516,-6676.18461217,0.00032886,2]
[381376516,1756167043525,-1500.0,0.00032896,5]
[381376518,1756167043535,-500.0,0.00033,30]
[381376519,1756167043544,-29251.95122,0.00033,3]
[381376521,1756167043554,-200.0,0.00033033,120]
[381376522,1756167043564,-1792.58905785,0.00033444,5]
[381376523,1756167043573,-250.0,0.00034334,2]
[381376524,1756167043583,-1447.91,0.0003452,120]
[381376525,1756167043592,-6676.18461217,0.0003499,2]
[381376526,1756167043602,-500.0,0.00035,120]
[381376527,1756167043611,-500.0,0.00035,30]
[381376528,1756167043621,-500.0,0.00035,30]
[381376529,1756167043636,-500.0,0.00035,30]
[381376530,1756167043651,-500.0,0.00035,30]
[381376531,1756167043664,-500.0,0.00035,30]
[381376532,1756167043680,-500.0,0.00035,30]
[381376533,1756167043690,-2053.34429897,0.00035,4]
[381376534,1756167043702,-500.0,0.00035,30]
[381376535,1756167043716,-8172.20490516,0.00035,7]
[381376536,1756167043730,-500.0,0.00035,30]
[381376537,1756167043743,-1220.03792003,0.00035,120]
[381376538,1756167043758,-245.0,0.00035,7]
[381376539,1756167043772,-151.0,0.00035,7]
[381376540,1756167043785,-151.0,0.00035,7]
[381376541,1756167043798,-151.0,0.00035,7]
[381376542,1756167043810,-151.0,0.00035,7]
[381376543,1756167043823,-151.529748,0.00035,7]
[381376544,1756167043835,-196.456346,0.00035,7]
[381376545,1756167043846,-151.0,0.00035,7]
[381376546,1756167043859,-151.0,0.00035,7]
[381376547,1756167043872,-151.0,0.00035,7]
[381376548,1756167043883,-151.0,0.00035,7]
[381376549,1756167043894,-151.0,0.00035,7]
[381376550,1756167043905,-417.15472785,0.00035,30]
[381376551,1756167043917,-529.29072822,0.00035,30]
[381376552,1756167043930,-720.0,0.00035117,20]
[381376553,1756167043943,-196.0,0.00036,30]
[381376554,1756167043955,-164.0,0.00036,30]
[381376555,1756167043969,-151.0,0.00036164,30]
[381376556,1756167043982,-151.0,0.00036164,30]
[381376557,1756167043998,-151.0,0.00036164,30]
[381376558,1756167044011,-151.0,0.00036164,30]
[381376559,1756167044024,-151.000001,0.00036164,30]
[381376560,1756167044034,-1447.91,0.00036164,120]
[381376561,1756167044044,-151.0,0.00036482,30]
[381376562,1756167044055,-151.0,0.00036482,30]
[381376563,1756167044066,-151.0,0.00036482,30]
[381376564,1756167044081,-3062.81405201,0.00036483,2]
[381376565,1756167044095,-151.753128,0.00036489,2]
[381376566,1756167044106,-8274.04,0.000366,14]
[381376567,1756167044117,-8105.19276225,0.000366,10]
[381376579,1756167046297,-199.0,0.00032405,120]
[381376580,1756167046309,-169.79746588,0.00036489,2]
[381376581,1756167046321,-6.06253412,0.000366,10]
[381376587,1756167129534,434.3094557,0.000281,7]
[381376592,1756168017118,-213.0,0.00031,120]
[381376593,1756168017138,-64.32128571,0.00031691,2]
[381376594,1756168032116,-95.67871429,0.00031691,2]
[381376595,1756168032138,-217.12848614,0.00031691,2]
[381376596,1756168032160,-200.0,0.00033602,120]
[381376597,1756168032180,-1831.8618073,0.00034934,2]
[381376598,1756168032199,-57.08017683,0.00035,120]
[381376599,1756168053096,-1442.91982317,0.00035,120]
[381376600,1756168053119,-400.0,0.00035599,2]
[381376601,1756168053153,-500.0,0.000356,10]
[381376602,1756168053174,-500.0,0.000356,10]
[381376603,1756168053194,-500.0,0.000356,10]
[381376604,1756168053214,-500.0,0.000356,10]
[381376605,1756168053236,-500.0,0.000356,10]
[381376606,1756168053257,-500.0,0.000356,10]
[381376607,1756168053278,-500.0,0.000356,10]
[381376608,1756168053299,-1319.08739373,0.000356,2]
[381376690,1756168238134,-1154.0,0.0003169,2]
[381376691,1756168238206,-137.35256111,0.0003169,2]
[381376692,1756168238216,-129.5084594,0.0003178,10]
[381376693,1756168238236,-687.3115406,0.0003178,10]
[381376694,1756168238247,-680.68,0.0003178,10]
[381376695,1756168238257,-764.0,0.00031788,3]
[381376696,1756168238266,-48680.91260627,0.00031789,2]
[381376697,1756168238275,-500.0,0.00031789,2]
[381376698,1756168238284,-500.0,0.00031789,2]
[381376699,1756168238294,-500.0,0.00031789,2]
[381376700,1756168238303,-500.0,0.00031789,2]
[381376701,1756168238312,-500.0,0.00031789,2]
[381376702,1756168238322,-500.0,0.00031789,2]
[381376703,1756168238342,-500.0,0.00031789,2]
[381376704,1756168238362,-500.0,0.00031789,2]
[381376705,1756168238375,-500.0,0.00031789,2]
[381376706,1756168238396,-506.26663291,0.00031789,2]
[381376707,1756168238407,-175.81648208,0.00031789,2]
[381376708,1756168238418,-217.12848614,0.00031789,2]
[381376709,1756168238428,-631.88189782,0.0003179,2]
[381376710,1756168238438,-626500.13578633,0.0003179,20]
[381376711,1756168238447,-5978.59844974,0.0003179,7]
[381376712,1756168238457,-49847.13800476,0.0003179,2]
[381376713,1756168238466,-1189.66571012,0.0003179,2]
[381376714,1756168238476,-479.999999,0.0003179,2]
[381376715,1756168238485,-576.97797581,0.0003179,5]
[381376716,1756168238495,-6131.28936142,0.0003179,30]
[381376717,1756168238504,-17822.12836044,0.0003179,2]
[381376718,1756168238514,-2332.38,0.000318,7]
[381376719,1756168238524,-21365.68,0.000318,7]
[381376720,1756168238533,-8241.29,0.000318,2]
[381376721,1756168238543,-214.77,0.000318,7]
[381376722,1756168238553,-1291.35256104,0.00033489,2]
[381376723,1756168238562,-500.0,0.000349,5]
[381376724,1756168238572,-1291.35256104,0.00035288,2]
[381376725,1756168238581,-1000.0,0.00035448,5]
[381376726,1756168238591,-151.0,0.000356,7]
[381376727,1756168238600,-151.0,0.000356,7]
[381376728,1756168238609,-151.0,0.000356,7]
[381376729,1756168238619,-151.0,0.000356,7]
[381376730,1756168238629,-393.015907,0.000356,7]
[381376731,1756168238638,-151.0,0.000356,7]
[381376732,1756168238650,-151.0,0.000356,7]
[381376733,1756168238660,-393.015907,0.000356,7]
[381376734,1756168238669,-151.0,0.000356,7]
[381376735,1756168238678,-393.015907,0.000356,7]
[381376736,1756168238688,-393.015907,0.000356,7]
[381376737,1756168238697,-1500.0,0.00035996,5]
[381376738,1756168238707,-168.0,0.00036392,2]
[381376739,1756168238716,-160.0,0.00036486,5]
[381376740,1756168238727,-151.0,0.00036489,2]
[381376741,1756168238738,-2000.0,0.00036544,5]
[381376742,1756168238748,-316948.78103296,0.000366,10]
[381376743,1756168238761,-109196.39126657,0.000366,10]
[381376744,1756168238770,-1000.0,0.00036986,15]
[381376745,1756168238779,-1164.64416824,0.00037092,5]
[381376746,1756168238789,-200.0,0.00037439,120]
[381376747,1756168238798,-160.0,0.00037785,2]
[381376748,1756168238808,-159.0,0.000378,120]
[381376749,1756168238818,-12701.40788335,0.0003786,2]
[381376750,1756168238829,-160.0,0.00037923,2]
[381376751,1756168238838,-160.0,0.00037938,2]
[381376752,1756168238848,-6008.56615095,0.00037941,3]
[381376753,1756168238858,-844.86965257,0.00037945,2]
[381376754,1756168238867,-417.15472785,0.00037945,2]
[381376755,1756168238877,-376.30788339,0.00037945,2]
[381376756,1756168238887,-160.0,0.00037945,2]
[381376757,1756168238899,-216.04034502,0.00037945,2]
[381376758,1756168238908,-1000.0,0.00037945,15]
[381376759,1756168238917,-232.4766599,0.00037948,2]
[381376760,1756168238926,-78949.31686842,0.00037998,2]
[381376761,1756168238935,-151.0,0.00037998,30]
[381376762,1756168238944,-151.0,0.00037998,30]
[381376763,1756168238953,-393.015907,0.00037998,30]
[381376764,1756168238963,-151.0,0.00037998,30]
[381376765,1756168238977,-151.0,0.00037998,30]
[381376766,1756168238987,-393.015907,0.00037998,30]
[381376767,1756168238997,-393.015907,0.00037998,30]
[381376768,1756168239007,-393.015907,0.00037998,30]
[381376769,1756168239017,-361.38552137,0.00038,120]
[381376770,1756168239026,-214.77,0.00038,7]
[381376771,1756168239036,-600.0,0.00038355,7]
[381376772,1756168239049,-500.0,0.00038356,14]
[381376773,1756168239059,-200.0,0.00038366,120]
[381376774,1756168239068,-6008.56615095,0.0003839,3]
[381376775,1756168239077,-232.4766599,0.0003839,3]
[381376776,1756168239087,-2332.38,0.000384,7]
[381376777,1756168239096,-21365.68,0.000384,14]
[381376778,1756168239106,-1339.31655461,0.000384,14]
[381376792,1756168240262,-115.12884415,0.0003178,10]
[381376808,1756168243437,-452.11115585,0.0003178,10]
[381376809,1756168243447,-1291.35256104,0.00037087,2]
[381376810,1756168243456,-217.12848614,0.0003839,3]
[381376811,1756168243466,-6901.97344539,0.000384,14]
[381376812,1756168243476,-600.0,0.00038555,30]
[381376813,1756168243485,-973.0,0.00038603,2]
[381376814,1756168243494,-637.0,0.00038603,2]
[381376815,1756168243505,-2155.0,0.00038603,2]
[381376816,1756168243514,-409.0,0.00038603,2]
[381376817,1756168243524,-500.0,0.0003863,14]
[381376818,1756168243533,-151.692735,0.00038775,2]
[381376819,1756168243543,-151.692735,0.000388,2]
[381376820,1756168243552,-1321.67,0.00038832,120]
[381376821,1756168243562,-500.0,0.00038904,14]
[381376822,1756168243571,-473.97322132,0.00038904,15]
[381376823,1756168243580,-6008.56615095,0.0003894,3]
[381376824,1756168243590,-34832.46146026,0.0003895,4]
[381376825,1756168243599,-151.0,0.0003895,30]
[381376826,1756168243608,-151.0,0.0003895,30]
[381376827,1756168243617,-393.015907,0.0003895,30]
[381376828,1756168243626,-151.0,0.0003895,30]
[381376829,1756168243635,-151.0,0.0003895,30]
[381376830,1756168243646,-393.015907,0.0003895,30]
[381376831,1756168243656,-393.015907,0.0003895,30]
[381376832,1756168243665,-393.015907,0.0003895,30]
[381376833,1756168243674,-500.0,0.0003899,3]
[381376834,1756168243683,-151.0,0.0003899,30]
[381376835,1756168243692,-151.0,0.0003899,30]
[381376836,1756168243701,-151.0,0.0003899,30]
[381376837,1756168243710,-151.0,0.0003899,30]
[381376838,1756168243719,-151.0,0.0003899,30]
[381376839,1756168243729,-151.0,0.0003899,30]
[381376840,1756168243738,-151.0,0.0003899,30]
[381376841,1756168243747,-151.0,0.0003899,30]
[381376842,1756168243756,-151.0,0.0003899,30]
[381376843,1756168243765,-151.0,0.0003899,30]
[381376844,1756168243774,-151.0,0.0003899,30]
[381376845,1756168243783,-151.0,0.0003899,30]
[381376846,1756168243792,-996.35275179,0.00039,120]
[381376847,1756168243801,-538.0,0.00039,30]
[381376848,1756168243810,-268.505,0.00039064,2]
[381376849,1756168243820,-600.0,0.00039177,7]
[381376850,1756168243829,-500.0,0.00039178,14]
[381376851,1756168243838,-500.0,0.00039264,3]
[381376852,1756168243847,-529.29072822,0.00039274,30]
[381376853,1756168243856,-538.0,0.00039274,30]
[381376854,1756168243865,-270647.80065627,0.000394,120]
[381376855,1756168243874,-151.0,0.000394,30]
[381376856,1756168243883,-529.29072822,0.000394,120]
[381376857,1756168243892,-393.015907,0.000394,30]
[381376858,1756168243902,-151.0,0.000394,30]
[381376859,1756168243911,-393.015907,0.000394,30]
[381376860,1756168243921,-393.015907,0.000394,30]
[381376861,1756168243930,-393.015907,0.000394,30]
[381376862,1756168243941,-500.0,0.00039452,14]
[381376863,1756168243951,-500.0,0.00039538,3]
[381376864,1756168243960,-538.0,0.00039548,30]
[381376865,1756168243972,-1111.74365539,0.0003965,120]
[381376866,1756168243991,-500.0,0.00039726,14]
[381376867,1756168244010,-214.77,0.000398,7]
[381376868,1756168244021,-494.32184839,0.00039812,3]
[381376869,1756168244243,-538.0,0.00039822,30]
[381376870,1756168244254,-6008.56615095,0.0003989,3]
[381376871,1756168244264,-2332.38,0.000399,7]
[381376872,1756168244273,-21365.68,0.000399,14]
[381376873,1756168244283,-8241.29,0.000399,14]
[381376874,1756168244293,-4000.0,0.00039971,4]
[381376875,1756168244303,-600.0,0.00039999,7]
[381376876,1756168244313,-379970.78011032,0.0004,30]
[381376877,1756168244328,-65386.3679448,0.0004,30]
[381376940,1756168525176,158.0,0.000281,7]
[381376941,1756168618084,158.0,0.000281,8]
[381376942,1756168645515,158.0,0.000281,9]
[381376943,1756169232134,-160.0,0.00037825,3]
[381376944,1756169232155,-204.32354458,0.00038355,7]
[381376945,1756169244149,-295.67645542,0.00038355,7]
[381376946,1756169244175,-166.55487739,0.00038678,2]
[381376947,1756169244196,-160.0,0.00038679,4]
[381376948,1756169244219,-300.0,0.00038769,5]
[381376949,1756169244247,-12701.40788335,0.0003877,2]
[381376950,1756169244268,-148.80152089,0.00038788,2]
[381377038,1756169436549,-160.32560813,0.00035,30]
[381377040,1756169436559,-500.0,0.00038355,7]
[381377042,1756169436568,-166.55487738,0.00038727,2]
[381377044,1756169436578,-160.0,0.00038763,2]
[381377046,1756169436587,-160.0,0.000388,2]
[381377048,1756169436596,-96.41003474,0.000388,2]
[381377051,1756169436616,-63.58996526,0.000388,2]
[381377053,1756169436626,-844.86965257,0.00038823,2]
[381377055,1756169436635,-376.30788339,0.00038823,2]
[381377057,1756169436644,-500.0,0.00038852,14]
[381377059,1756169436657,-500.0,0.00039,30]
[381377061,1756169436666,-500.0,0.00039126,14]
[381377063,1756169436676,-187.504,0.00039177,54]
[381377065,1756169436685,-500.0,0.00039177,7]
[381377085,1756169436910,-973.0,0.00039345,2]
[381377086,1756169436924,-637.0,0.00039345,2]
[381377087,1756169436934,-2155.0,0.00039345,2]
[381377088,1756169436944,-181.02,0.000394,7]
[381377089,1756169436954,-160.0,0.00039532,5]
[381377090,1756169436963,-225.6478587,0.00039532,5]
[381377091,1756169436973,-1446.7048452,0.00039771,2]
[381377092,1756169436982,-645.67628052,0.0003979,2]
[381377093,1756169436992,-158.0,0.000398,30]
[381377094,1756169437002,-158.0,0.000398,30]
[381377095,1756169437011,-158.0,0.000398,45]
[381377096,1756169437020,-158.0,0.000398,45]
[381377097,1756169437029,-161.0,0.000398,60]
[381377098,1756169437039,-161.0,0.000398,60]
[381377099,1756169437048,-1646.82316501,0.000398,2]
[381377100,1756169437057,-424.44128148,0.00039889,31]
[381377101,1756169437067,-328.42,0.00039889,31]
[381377102,1756169437077,-500.0,0.00039889,31]
[381377103,1756169437087,-407.22699692,0.00039889,7]
[381377104,1756169437097,-500.0,0.00039889,31]
[381377105,1756169437106,-500.0,0.00039889,31]
[381377106,1756169437116,-457.78158742,0.00039889,31]
[381377107,1756169437126,-5007.19461945,0.0003989,3]
[381377108,1756169437139,-1091.3,0.0003989,3]
[381377139,1756169438411,-4617.3210306,0.0003989,3]
[381377141,1756169438424,-58364.00635535,0.0003989,3]
[381377142,1756169438434,-3337.22757697,0.0003989,3]
[381377143,1756169438444,-207.8411945,0.00039899,31]
[381377144,1756169438454,-500.0,0.00039899,31]
[381377147,1756169438463,-500.0,0.00039899,31]
[381377149,1756169438473,-500.0,0.00039899,31]
[381377150,1756169438483,-500.0,0.00039899,31]
[381377151,1756169438492,-500.0,0.00039899,31]
[381377152,1756169438503,-500.0,0.00039899,31]
[381377153,1756169438512,-457.31952365,0.00039899,31]
[381377155,1756169438522,-500.0,0.00039899,31]
[381377157,1756169438531,-500.0,0.00039899,31]
[381377158,1756169438542,-500.0,0.00039899,31]
[381377159,1756169438551,-500.0,0.00039899,31]
[381377160,1756169438561,-481.95327893,0.00039899,31]
[381377161,1756169438571,-500.0,0.00039899,31]
[381377162,1756169438580,-1266.6,0.00039899,120]
[381377163,1756169438590,-42579.67616054,0.000399,2]
[381377164,1756169438602,-833.4221741,0.000399,2]
[381377165,1756169438621,-1720.71130094,0.000399,2]
[381377166,1756169438633,-300.0,0.000399,2]
[381377167,1756169438644,-654.34526585,0.000399,2]
[381377168,1756169438658,-729.27371039,0.000399,2]
[381377169,1756169438846,-1530.27119301,0.000399,2]
[381377170,1756169438858,-321652.30019517,0.000399,2]
[381377171,1756169438868,-14955.97,0.000399,14]
[381377172,1756169438877,-19737.0920015,0.0003999,3]
[381377173,1756169438887,-953.49359342,0.0003999,3]
[381377174,1756169438898,-500.0,0.00039999,7]
[381377175,1756169438915,-448.0,0.00039999,7]
[381377176,1756169438924,-250.0,0.00039999,30]
[381377177,1756169438935,-250.0,0.00039999,30]
[381377178,1756169438944,-250.0,0.00039999,30]
[381377179,1756169438954,-250.0,0.00039999,30]
[381377180,1756169438963,-250.0,0.00039999,30]
[381377181,1756169438973,-250.0,0.00039999,30]
[381377182,1756169438983,-250.0,0.00039999,30]
[381377183,1756169438993,-54642.85194488,0.0004,30]
[381377184,1756169439003,-400.0,0.0004,120]
[381377185,1756169439013,-1500.0,0.0004,120]
[381377186,1756169439024,-1500.0,0.0004,10]
[381377187,1756169439033,-71842.94470698,0.0004,30]
[381377188,1756169439043,-7808.32,0.0004,14]
[381377189,1756169439053,-1763.0,0.00040052,14]
[381377190,1756169439062,-1763.0,0.00040052,14]
[381377191,1756169439073,-1763.0,0.00040052,14]
[381377192,1756169439083,-1404.41524019,0.00040052,14]
[381377193,1756169439092,-448.0,0.00040273,7]
[381377194,1756169439102,-200.0,0.00040289,120]
[381377195,1756169439112,-500.0,0.0004036,30]
[381377196,1756169439121,-200.0,0.00040363,120]
[381377197,1756169439131,-151.692735,0.00040422,20]
[381377198,1756169439141,-200.0,0.00040428,120]
[381377199,1756169439150,-645.67628052,0.00040471,28]
[381377200,1756169439162,-1646.823165,0.00040535,2]
[381377201,1756169439171,-448.0,0.00040547,7]
[381377202,1756169439181,-773.5596454,0.00040548,30]
[381377203,1756169439190,-151.692735,0.00040642,2]
[381377204,1756169439200,-600.0,0.00040799,30]
[381377205,1756169439209,-181.02,0.000408,7]
[381377206,1756169439218,-448.0,0.00040821,7]
[381377207,1756169439228,-500.0,0.00040821,7]
[381377208,1756169439239,-19737.0920015,0.0004089,3]
[381377209,1756169439248,-953.49359342,0.0004089,3]
[381377210,1756169439258,-41193.65,0.000409,30]
[381377211,1756169439268,-60091.73,0.000409,30]
[381377212,1756169439280,-9868.54600077,0.00040985,3]
[381377213,1756169439290,-476.74679671,0.00040985,3]
[381377214,1756169439299,-9868.54600077,0.0004099,3]
[381377215,1756169439309,-476.74679671,0.0004099,3]
[381377216,1756169439320,-7596.26367185,0.00040995,30]
[381377217,1756169439330,-1000.0,0.00040995,2]
[381377218,1756169439340,-81912.6204045,0.00041,120]
[381377219,1756169439350,-1632.66,0.00041,7]
[381377220,1756169439360,-151.0,0.00041,19]
[381377221,1756169439370,-151.0,0.00041,30]
[381377222,1756169439380,-151.444016,0.00041,14]
[381377223,1756169439390,-151.0,0.00041,30]
[381377224,1756169439400,-151.0,0.00041,30]
[381377225,1756169439414,-151.0,0.00041,30]
[381377226,1756169439423,-505.81902567,0.00041059,15]
[381377227,1756169439433,-151.0,0.00041065,30]
[381377228,1756169439442,-151.0,0.00041065,30]
[381377229,1756169439451,-151.0,0.00041065,30]
[381377230,1756169439461,-151.0,0.00041065,30]
[381377231,1756169439471,-151.0,0.00041065,30]
[381377232,1756169439480,-151.0,0.00041065,30]
[381377233,1756169439490,-151.0,0.00041065,30]
[381377234,1756169439500,-151.0,0.00041065,30]
[381377235,1756169439509,-151.0,0.00041065,30]
[381377236,1756169439520,-288.269151,0.00041065,30]
[381377237,1756169439530,-151.0,0.00041065,30]
[381377238,1756169439539,-151.379277,0.00041065,30]
[381377239,1756169439549,-151.0,0.00041065,30]
[381377240,1756169439558,-168.04294,0.00041065,30]
[381377241,1756169439570,-151.0,0.00041065,30]
[381377242,1756169439579,-151.0,0.00041065,30]
[381377243,1756169439589,-151.0,0.00041065,30]